Cogmind - Beta 16 @@@ ROGUE MODE // 2025.10.27 @ 05:48:56 Player: time Result: Destroyed by S-27 Virus with Autogun Performance ------------- Evolutions (5) 2500 Regions Visited (4) 800 Robots Destroyed (14) 70 Value Destroyed (357) 357 Prototype IDs (1) 20 Alien Tech Used (0) 0 Bonus (800) 800 TOTAL SCORE: 4547 Bonus ------- Registered with UFD 300 Met Optimus in HQ 500 Cogmind --------- Core Integrity 0/1000 Matter 58/300 Energy 99/100 System Corruption 5% Temperature Cool (0) Movement Core (50) Location -5/Factory Parts ------- > --- POWER (2) -------- (None) > --- PROPULSION (5) --- (None) > --- UTILITY (6) ------ (None) > --- WEAPON (4) ------- (None) > --- INVENTORY (5) ---- (None) Peak State ------------ > --- POWER ------------ Light Deuterium Engine Makeshift Power Source > --- PROPULSION ------- Aluminum Leg Overtuned Titanium Leg Overtuned Titanium Leg > --- UTILITY ---------- Small Storage Unit Advanced Sensor Array Seismic Detector Advanced Recoil Stabilizer Focal Shield Hacking Suite > --- WEAPON ----------- Gauss Rifle Gauss Cannon Missile Launcher Ionic Axe > --- INVENTORY -------- Ionic Axe DRS Beacon [Rating: 54] Favorites ----------- Power Makeshift Power Source Engine Makeshift Power Source Propulsion Aluminum Leg Leg Aluminum Leg Utility Small Storage Unit Device Seismic Detector Storage Small Storage Unit Hackware Hacking Suite Weapon Heavy Assault Rifle Energy Gun Pulse Rifle Ballistic Gun Heavy Assault Rifle Ballistic Cannon Gauss Cannon Launcher Missile Launcher Slashing Weapon Ionic Axe Piercing Weapon Makeshift Spear Build | -11 -10 -10 -7 -5 ------- Run | Yrd Mat Sub Scr Fac Slots Evolved 10 | . . . . 10 Power 1 | . . . . 1 Propulsion 3 | . . . . 3 Utility 4 | . . . . 4 Weapon 2 | . . . . 2 Parts Attached 29 | 8 2 . 7 12 Power 4 | 1 . . 1 2 Engine 4 | 1 . . 1 2 Core . | . . . . . Reactor . | . . . . . Propulsion 4 | 2 . . 2 . Treads . | . . . . . Leg 4 | 2 . . 2 . Wheel . | . . . . . Hover . | . . . . . Flight . | . . . . . Utility 7 | 2 . . . 5 Device 5 | 1 . . . 4 Storage 1 | 1 . . . . Processor . | . . . . . Hackware 1 | . . . . 1 Protection . | . . . . . Artifact . | . . . . . Weapon 14 | 3 2 . 4 5 Energy Gun 6 | 3 . . 1 2 Energy Cannon . | . . . . . Ballistic Gun 3 | . 2 . 1 . Ballistic Cannon 1 | . . . 1 . Launcher 1 | . . . . 1 Special Weapon . | . . . . . Impact Weapon . | . . . . . Slashing Weapon 2 | . . . . 2 Piercing Weapon 1 | . . . 1 . Special Melee Weapon . | . . . . . Unidentified Prototypes 1 | . . . . 1 Parts Lost 20 | . . . . 20 Power 3 | . . . . 3 Propulsion 3 | . . . . 3 Utility 7 | . . . . 7 Weapon 7 | . . . . 7 Highest Loss Streak 20 | . . . . 20 To Critical Strikes . | . . . . . Average Backups 6 | 3 6 7 7 2 Power . | . 1 1 1 . Propulsion 1 | 1 2 2 1 . Utility 1 | . . . 2 . Weapon 2 | . 3 4 2 1 Tool/Special . | . . . . . Unused Backups 10 | . 2 1 6 1 Power 1 | . . . 1 . Propulsion 5 | . 2 1 2 . Utility 1 | . . . . 1 Weapon 3 | . . . 3 . Tool/Special . | . . . . . Average Slot Usage (%) 92 | . 100 100 99 66 Engine 13 | . 14 14 14 9 Leg 24 | . 28 28 27 14 Device 14 | . 14 14 14 15 Storage 11 | . 14 14 14 3 Energy Gun 3 | . 12 . 4 1 Ballistic Gun 19 | . 16 28 22 3 Peak Build Rating 54 | 7 9 9 21 54 Average Rating 18 | 5 8 9 14 40 On Entrance 9 | . 7 9 9 21 Avg Prop Armor Cover (%) 5 | . . . . 5 Naked Turns 14 | . . . . 14 Heaviest Build 39 | 12 15 15 21 39 Greatest Support 48 | 20 20 20 29 48 Greatest Overweight (x) 3 | 2 . . 2 3 Average Overweight (x) . | . . . . . Largest Inventory Capacity 8 | 8 8 8 8 8 Average Capacity 7 | 7 8 8 8 7 Most Carried 8 | 4 8 7 8 7 Average Carried 6 | 3 6 7 7 3 Final Capacity 8 | 8 8 8 8 5 Final Carried 8 | 4 7 7 8 . Class Distribution -------------------- 90% | Mutant 6% | Derelict-Tank 3% | Derelict-Skirmisher Dominant Class ---------------- Mutant | -10/Materials Mutant | -10/Subcaves Mutant | -7/Scraptown Mutant | -5/Factory Resources | -11 -10 -10 -7 -5 ----------- Run | Yrd Mat Sub Scr Fac Matter Collected 495 | 258 60 . 98 79 Remotely . | . . . . . Salvage Created 352 | 85 . . 70 197 Parts 25 | 9 . . 1 15 Haulers Intercepted . | . . . . . Recyclers Shooed . | . . . . . Parts Field Recycled . | . . . . . Retrieved Matter . | . . . . . Parts Self-Destructed 8 | . . 8 . . Prevented . | . . . . . Parts Restored . | . . . . . Kills | -11 -10 -10 -7 -5 ------- Run | Yrd Mat Sub Scr Fac Combat Hostiles Destroyed 5 | . . . 1 4 Melee 2 | . . . . 2 Guns 1 | . . . . 1 Cannons 2 | . . . 1 1 Classes Destroyed 8 | 2 . . 1 5 Worker 2 | 2 . . . . Builder 2 | . . . . 2 Tunneler 4 | 4 . . . . Watcher 1 | . . . . 1 Swarmer 1 | . . . . 1 Hunter 1 | . . . . 1 Programmer 2 | . . . . 2 Scrapper 1 | . . . 1 . Best Kill Streak 5 | 3 . . 1 5 Combat Bots Only 2 | . . . 1 2 Max Kills in Single Turn 3 | 1 . . 1 3 Gunslinging . | . . . . . Exploded . | . . . . . Melee 1 | . . . . 1 Uniques/NPCs Destroyed . | . . . . . Combat | -11 -10 -10 -7 -5 -------- Run | Yrd Mat Sub Scr Fac Hostile Shots Fired 227 | . . . 10 217 Missed 70 | . . . 1 69 Hits 157 | . . . 9 148 Melee 3 | . . . 3 . Projectile 154 | . . . 6 148 Critical Strikes 4 | . . . . 4 Part Disruptions 1 | . . . . 1 Damage Taken 2403 | . . . 130 2273 Core 1056 | . . . 44 1012 Absorbed by Shields . | . . . . . Ignored by Resistances 151 | . . . . 151 Core Remaining (%) 91 | 100 . . 82 . Volleys Fired 38 | 15 3 . 4 16 Largest 3 | 2 2 . 2 3 Hottest 141 | 90 46 . 68 141 Shots Fired 80 | 30 6 . 6 38 Gun 59 | 30 6 . 4 19 Cannon 16 | . . . 2 14 Launcher 5 | . . . . 5 Special . | . . . . . Kinetic 30 | . 6 . 6 18 Thermal 30 | 30 . . . . Explosive 5 | . . . . 5 Electromagnetic 15 | . . . . 15 Robot Hit Streak 5 | 4 4 . 3 5 Robot Miss Streak 3 | 3 1 . 2 3 Penetration Max . | . . . . . Secondary Targets . | . . . . . Shots Hit Robots 49 | 16 5 . 3 25 Core Hits 19 | 7 . . 1 11 Critical Kills . | . . . . . Critical Parts Destroyed . | . . . . . Critical Strikes 1 | . . . . 1 Blast 1 | . . . . 1 Melee Attacks 5 | . . . . 5 Impact . | . . . . . Slashing 5 | . . . . 5 Piercing . | . . . . . Sneak Attacks . | . . . . . Combat Hostiles . | . . . . . Follow-up Attacks . | . . . . . Damage Inflicted 1241 | 197 76 . 75 893 Guns 506 | 197 76 . 17 216 Cannons 201 | . . . 58 143 Explosions 414 | . . . . 414 Melee 120 | . . . . 120 Ramming . | . . . . . Kinetic 337 | . 76 . 75 186 Thermal 197 | 197 . . . . Explosive 414 | . . . . 414 Electromagnetic 173 | . . . . 173 Impact . | . . . . . Slashing 120 | . . . . 120 Piercing . | . . . . . Highest Corruption 5 | . . . . 5 Average Corruption 2 | . . . . 2 Corruption Purged . | . . . . . Corruption Blocked . | . . . . . Effects 4 | . . . . 4 Message Errors 1 | . . . . 1 Matter Fused 3 | . . . . 3 Overload Shots . | . . . . . Overflow Damage 11 | . . . 3 8 Projectiles 6 | . . . 3 3 Explosions 5 | . . . . 5 Melee . | . . . . . Knockbacks 4 | . . . 1 3 Impact . | . . . . . Kinetic 3 | . . . 1 2 Secondary 1 | . . . . 1 Self-Inflicted Damage . | . . . . . Shots . | . . . . . Rammed . | . . . . . Targets Rammed . | . . . . . Kicked . | . . . . . Crushed . | . . . . . Highest Temperature 357 | 196 . . 74 357 Average Temperature 136 | 82 . . 36 205 Received Heat Transfer 90 | . . . 72 18 Effects 6 | . . . . 6 Shutdowns 1 | . . . . 1 Interference 3 | . . . . 3 Damage (minor) 2 | . . . . 2 Siege Activations . | . . . . . Martial Activations . | . . . . . Shielding Activations . | . . . . . Robots Disrupted . | . . . . . Combat Hostiles . | . . . . . Robots Corrupted . | . . . . . Combat Hostiles . | . . . . . Parts Fried . | . . . . . Impact Corruptions . | . . . . . Robots Melted . | . . . . . Combat Hostiles . | . . . . . Parts Melted 1 | 1 . . . . Heat Transferred 509 | 509 . . . . Parts Sabotaged . | . . . . . Parts Stolen 1 | . . . 1 . Parts Stripped . | . . . . . Power Chain Reactions . | . . . . . Alert | -11 -10 -10 -7 -5 ------- Run | Yrd Mat Sub Scr Fac Maximum Alert Level . | . . . . . Low Security (%) 100 | 100 100 . . 100 Level 1 . | . . . . . Level 2 . | . . . . . Level 3 . | . . . . . Level 4 . | . . . . . Level 5 . | . . . . . High Security . | . . . . . Max Security . | . . . . . Peak Influence 116 | 10 . . . 116 Initial . | . . . . . Average 6 | 1 . . . 9 Influence Increases 242 | 30 . . . 212 Destroy 0b10 Robot/C 80 | . . . . 80 Destroy 0b10 Robot/NC 45 | 30 . . . 15 Destroy Leader 22 | . . . . 22 Successful Hack 4 | . . . . 4 Disable Machine 15 | . . . . 15 Destroy Structure 76 | . . . . 76 Influence Decreases 242 | 30 . . . 212 Time Decay 94 | 30 . . . 64 Lost Part 148 | . . . . 148 Squads Dispatched 4 | . 1 . . 3 Investigation 1 | . . . . 1 Extermination 1 | . . . . 1 Reinforcement 2 | . 1 . . 1 Assault . | . . . . . Garrison . | . . . . . Intercept . | . . . . . Searches Triggered . | . . . . . Construction Impeded 1 | . . . . 1 Haulers Reinforced . | . . . . . Active Scanning Responses . | . . . . . Cargo Convoy Interrupts . | . . . . . Stealth | -11 -10 -10 -7 -5 --------- Run | Yrd Mat Sub Scr Fac Distress Signals 1 | . . . . 1 Communications Jammed . | . . . . . Distress Signals . | . . . . . Times Spotted 36 | . 1 . 14 21 Peak Tracking Total 12 | . 1 . 10 12 Tactical Retreats 1 | . . . 1 . Traps | -11 -10 -10 -7 -5 ------- Run | Yrd Mat Sub Scr Fac Traps Triggered . | . . . . . Indirectly . | . . . . . Trap Hack Attempts . | . . . . . Triggered . | . . . . . Disarmed . | . . . . . Reprogrammed . | . . . . . Reused . | . . . . . Traps Extracted . | . . . . . Installed . | . . . . . Triggered . | . . . . . Machines | -11 -10 -10 -7 -5 ---------- Run | Yrd Mat Sub Scr Fac Machines Disabled 1 | . . . . 1 Max in Single Turn 1 | . . . . 1 Machines Repaired . | . . . . . Machines Dismantled . | . . . . . Machines Sabotaged . | . . . . . Overloaded Fab Kills . | . . . . . Hacking | -11 -10 -10 -7 -5 --------- Run | Yrd Mat Sub Scr Fac Machines Accessed 13 | . 2 . 9 2 Terminals 4 | . 2 . . 2 Fabricators . | . . . . . Repair Stations . | . . . . . Recycling Units . | . . . . . Scanalyzers . | . . . . . Garrison Access . | . . . . . Total Hacks 66 | . 6 . 57 3 Successful 61 | . 3 . 57 1 Failed 5 | . 3 . . 2 Catastrophic 3 | . 2 . . 1 Database Lockouts . | . . . . . Manual 5 | . 1 . . 4 Terminals 9 | . 6 . . 3 Fabricators . | . . . . . Repair Stations . | . . . . . Recycling Units . | . . . . . Scanalyzers . | . . . . . Garrison Access . | . . . . . Terminal Hacks 60 | . 3 . 57 . Record 52 | . . . 52 . Robot Analysis 7 | . 2 . 5 . Locate Traps 1 | . 1 . . . Fabricator Hacks . | . . . . . Repair Station Hacks . | . . . . . Recycling Unit Hacks . | . . . . . Scanalyzer . | . . . . . Garrison Access Hacks . | . . . . . Unauthorized Hacks 1 | . . . . 1 Terminals 1 | . . . . 1 Botnet 1 | . . . . 1 Fabricators . | . . . . . Repair Stations . | . . . . . Recycling Units . | . . . . . Scanalyzers . | . . . . . Garrison Access . | . . . . . Data Cores Recovered . | . . . . . Used . | . . . . . Hacking Detections 4 | . 2 . . 2 Full Trace Events 1 | . . . . 1 Feedback Events 1 | . . . . 1 Corruption 1 | . . . . 1 Feedback Blocked . | . . . . . Robot Schematics Acquired . | . . . . . Robots Built . | . . . . . Authchips . | . . . . . Time . | . . . . . Total Robot Build Rating . | . . . . . Part Schematics Acquired . | . . . . . Parts Built . | . . . . . Authchips . | . . . . . Time . | . . . . . Total Part Build Rating . | . . . . . Part Studies Acquired . | . . . . . Parts Repaired . | . . . . . Time . | . . . . . Parts Recycled . | . . . . . Recycled Matter . | . . . . . Retrieved Matter . | . . . . . Retrieved Components . | . . . . . Parts Scanalyzed . | . . . . . Part Schematics Acquired . | . . . . . Parts Damaged . | . . . . . Bothacking | -11 -10 -10 -7 -5 ------------ Run | Yrd Mat Sub Scr Fac Used RIF Installer . | . . . . . Robots Hacked . | . . . . . Non-combat . | . . . . . Combat . | . . . . . Robot Hacks Applied . | . . . . . Relay Couplers Released . | . . . . . Fabnet Peak Effective % . | . . . . . Robots Rewired . | . . . . . Allies Hacked . | . . . . . Hacks Repelled . | . . . . . Allies | -11 -10 -10 -7 -5 -------- Run | Yrd Mat Sub Scr Fac Total Allies . | . . . . . Largest Group . | . . . . . Highest-Rated Group . | . . . . . Highest-Rated Ally . | . . . . . Total Orders . | . . . . . Ally Attacks . | . . . . . Total Damage . | . . . . . Kills . | . . . . . Allies Corrupted . | . . . . . Allies Melted 1 | . . . 1 . Intel | -11 -10 -10 -7 -5 ------- Run | Yrd Mat Sub Scr Fac Active Infowar (turns) 2694 | 17 126 300 1819 432 Sensors 401 | . . . . 401 Seismic 2684 | 17 126 300 1819 422 Jamming 275 | . . . . 275 Robot Analysis Total 7 | . 2 . 5 . Derelict Logs Recovered 1 | . . 1 . . Drone Launches . | . . . . . Drone Recoveries . | . . . . . Exploration | -11 -10 -10 -7 -5 ------------- Run | Yrd Mat Sub Scr Fac Turns Passed 2969 | 154 126 300 1819 570 Spaces Moved 2204 | 79 89 242 1458 336 Core 118 | 11 . . . 107 Treads . | . . . . . Legs 2086 | 68 89 242 1458 229 Wheels . | . . . . . Hover . | . . . . . Flight . | . . . . . Fastest Speed 50 | 50 120 120 110 50 Average Speed 123 | 119 120 120 122 135 Slowest Speed 260 | 150 120 120 260 260 Overloaded Moves . | . . . . . Propulsion Burnouts . | . . . . . Robots Hopped . | . . . . . Potential Cave-ins . | . . . . . Cave-ins Triggered . | . . . . . Exploration Rate (%) 27 | 7 19 15 82 13 Regions Visited 4 Branch Regions 2 Pre-discovered Areas . | . . . . . Known Exits Taken . | . . . . . Unknown Exits Taken 4 | 1 1 1 1 . Scrap Searched 5 | . . . 5 . Spaces Dug . | . . . . . Terrain Destroyed 47 | . . . 2 45 Melee . | . . . . . Projectile 9 | . . . 2 7 AOE 38 | . . . . 38 Terrain Rammed . | . . . . . Walls Destroyed . | . . . . . Machines Disabled . | . . . . . Actions | -11 -10 -10 -7 -5 --------- Run | Yrd Mat Sub Scr Fac Total 2367 | 105 104 252 1495 411 Wait 31 | . . 9 6 16 Move 2200 | 78 88 241 1457 336 Hop . | . . . . . Pick Up 20 | 3 5 1 8 3 Fast Attach 21 | 8 2 . 5 6 Attach 16 | . . . . 16 Detach 11 | 1 2 . 1 7 Swap 4 | . . . 2 2 Drop 21 | . 4 1 12 4 Fire 38 | 15 3 . 4 16 Melee 5 | . . . . 5 Ram . | . . . . . Kick . | . . . . . Crush . | . . . . . Escape Stasis . | . . . . . Rewire . | . . . . . Trap . | . . . . . Miscellaneous . | . . . . . Route ------- -11/Scrapyard -10/Materials -10/Subcaves (discovered 3 exits: [*Mat] / *Scr x2) -7/Scraptown (discovered 2 exits: *Fac x2) -5/Factory History --------- Turn | Location | Event 15 | -11/Scrapyard | Discovered new exit (range 15) 155 | -11/Scrapyard | Entered Materials 156 | -10/Materials | Met a group of wandering Federalists 276 | -10/Materials | Discovered new exit (range 5) 281 | -10/Materials | Entered Subcaves 282 | -10/Subcaves | Continued accompanying wandering Federalists (5) 282 | -10/Subcaves | Approached by a straggling Scientist 318 | -10/Subcaves | Build established: Mutant 353 | -10/Subcaves | Shifting Twisted Machinery released Sub. Laser 369 | -10/Subcaves | Discovered new exit (range 14) 378 | -10/Subcaves | Learned location of 2 exits from Materials 534 | -10/Subcaves | Scientist uncovered a shortcut to Scraptown 551 | -10/Subcaves | Wandering Federalist uncovered a shortcut to Scraptown 581 | -10/Subcaves | Entered Scraptown 927 | -7/Scraptown | Discovered new exit (range 11) 1080 | -7/Scraptown | Visited Cyclists 1136 | -7/Scraptown | Visited Symbiants 1497 | -7/Scraptown | Visited The Evicted 1560 | -7/Scraptown | Visited Cave Peace 1592 | -7/Scraptown | Visited Red Mages 1702 | -7/Scraptown | Visited Supply Room 1749 | -7/Scraptown | Visited UFD Registry 1751 | -7/Scraptown | Registered with UFD as "Longmech" 1809 | -7/Scraptown | Visited Derelict Rescue Squad 1819 | -7/Scraptown | Found DRS Beacon 1866 | -7/Scraptown | Visited Curators Association 1921 | -7/Scraptown | Visited Abandonware Association 1930 | -7/Scraptown | Learned abandonware demo "OVRCLOCK.EXE" 1940 | -7/Scraptown | Learned abandonware demo "ERRANTS.EXE" 1940 | -7/Scraptown | Learned abandonware demo "TRNCOAT.EXE" 2046 | -7/Scraptown | Discovered new exit (range 3) 2082 | -7/Scraptown | Visited Observation Area 2126 | -7/Scraptown | Visited Analyses Database 2187 | -7/Scraptown | Met Optimus 2187 | -7/Scraptown | Accepted into 0bPrime 2245 | -7/Scraptown | Visited Scrap Suit Storage 2271 | -7/Scraptown | Civil war broke out across Scraptown 2316 | -7/Scraptown | Lost 4 allies 2317 | -7/Scraptown | Optimus destroyed in the chaos of civil war 2398 | -7/Scraptown | Lost 10 allies 2400 | -7/Scraptown | Entered Factory 2400 | -5/Factory | Evolved 10 slots: Power x1, Propulsion x3, Utility x4, Weapon x2 2938 | -5/Factory | Core integrity fell below 50% 2965 | -5/Factory | Core integrity fell below 20% 2970 | -5/Factory | Destroyed by S-27 Virus with Autogun Last Messages --------------- 02909_ Acquired DRS Beacon. 02911_ Penetrated by Slug. 02924_ System corrupted: Matter fused (-6). 02933_ C-30 ARC bursts open, deploying its payload. 02933_ S-27 Virus unfolds itself. 02935_ Hacking Suite destroyed. 02941_ Aluminum Leg destroyed. 02947_ S-27 Virus destroyed. 02947_ Dropped DRS Beacon. 02947_ Tesla Rifle destroyed. 02948_ Acquired 30 matter. 02949_ K-01 Serf collects debris. 02950_ ALERT: Security rotation in progress. 02952_ Imp. Deuterium Engine destroyed. 02952_ K-01 Serf collects debris. 02960_ Adv. Recoil Stabilizer destroyed. 02961_ O-24 Administrator: "IFF HANDSHAKE FAILED. SECURING TERMINAL." 02964_ Penetrated by Slug. 02964_ U-05 Engineer works on Megafabricator. 02967_ Slug penetrates Wall. Map ----- +----------------------------------------------------+ | ?????????????????????????????????????????????????? | | ?????????????????????????????????????????????????? | | ?????????????????????????????????????????????????? | | ?????????????????????????????????????????????????? | | ?????????????????????????????????????????????????? | | ?????????????????????????????????????????????????? | | ?????????????????????????????????????????????????? | | ?????????????????????????????????????????????????? | | ?????????????????????????????????????????????????? | | ?????????????????????????????????????????????????? | | ???????????????????????+##???????????????????????? | | ????????????????????? k???????????????????????? | | ??????????????????? ??????????????????????? | | ??????????????????? ??????????????????????? | | ???????????????????? ??????????????????????? | | ???????????????????? w ??????????????????????? | | ????????????????????# #??????????????????????? | | ????????????????????# #??????????????????????? | | ????????????????????# #??????????????????????? | | ????????????????????# #??????????????????????? | | ????????????????????# #??????????????????????? | | ????????????????????+ R/??????????????????????? | | ????????????????????# #??????????????????????? | | ????????????????????# #??????????????????????? | | ????????????????????# #??????????????????????? | | ????????????????????# @#??????????????????????? | | ????????????????????# k #??????????????????????? | | ????????????????????# #??????????????????????? | | ???????????????? ???# #??????????????????????? | | ???????????????? ??#o ##########?????????????? | | ???????????????"""??# ????????????? | | ???????????????""""?# k ???????????? | | ?????????????? """"?# ! "" ????????????? | | ?????????????? """" # ????????????? | | ?????????????" """" # ????????????? | | ?????????????" """" + ????????????? | | ?????????????" """" # R ????????????? | | ???????????? # R ????????????? | | ????????????#######?#s k ????????????? | | ??????????? """ ?# ????????????? | | ??????????# "R" # ????????????? | | ??????????# " " # ????????????? | | ??????????# + ????????????? | | ??????????# """ # ###?????????????? | | ??????????? """ !!!# #???????????????? | | ??????????? """ !!?# ^ #???????????????? | | ??????????? !!?# #???????????????? | | ???????????#######??# #???????????????? | | ????????????????????# #???????????????? | | ????????????????????# #???????????????? | +----------------------------------------------------+ Best States ------------- Heat Dissipation 40 Energy Generation 24 Energy Capacity 290 Matter Stores 300 Matter Capacity 300 Sight Range 16 Robot Scan Range 16 Terrain Scan Density 10 Jamming Range 12 Resistance: KI 20 Evasion (%) 55 Recoil Reduction 6 Offensive Hacking 10 Item Schematics ----------------- None Robot Schematics ------------------ None Fabricated ------------ Nothing Repaired ---------- Nothing Studied --------- None Alien Tech Used ----------------- None Achievements -------------- Bumper Bots Civilization 2243 Link The Feds Nice Directions, Buddy Plot Armor Strength In Numbers Uncivil War Challenges ------------ None Game ------ Seed ArcMissileJammer Manual? 0 Play Time 00:40:53 Cumulative 26.6 hours Start 2025.10.27 @ 05:10:04 End 2025.10.27 @ 05:48:56 Sessions 1 Manual Loads 0 Difficulty Rogue Special Mode None Game No. 41 Rogue 18 Adventurer 18 Explorer 5 Win Type - Total 0 Types 0/0/0/0/0/0/0/0/0/0 Lore% 24 Gallery% 37 Achievement% 24 Wizard Run 0 Options --------- Layout 0 ASCII 0 Keyboard 1 Movement Numpad Keybinds 0 Fullscreen 1 Font 18/X11 Map View 76x50 Zoom Use 1% Tactical HUD 1 Map Filters NONE Filters NONE Steam 1 RUN: 7133a4e7-715e-4c34-8bef-cf659d173fab